Workbook

Sheet Wahlamt
A1: Ergebnisse der Bürgermeisterstichwahlen am 29. März 2020 im Landkreis Rottal-Inn
A3: Gemeinden | B3: Stimmbe-rechtigte insges. A1 + A2 | C3: Wähler B insgesamt | D3: Bewerber A | E3: Stimmen | F3: Prozent | G3: Bewerber B | H3: Stimmen | I3: Prozent | J3: Gültige Stimmen gesamt | K3: ungültige Stimmen gesamt | M3: Gesamt- prozent | N3: Kontrolle | O3: Uhrzeit Eingang Meldung | P3: Wahl- beteiligung
A4: Eggenfelden | B4: 10666 | C4: 6534 | D4: Biber Martin (CSU) | E4: 4409 | F4: =E4/J4 -> 0.6766421117 | G4: Grubwinkler Wolfgang (UWG) | H4: 2107 | I4: =H4/J4 -> 0.3233578883 | J4: =E4+H4 -> 6516 | K4: =C4-J4 -> 18 | M4: =F4+I4 -> 1 | N4: =IF(M4<>100%,"FALSCH","ok") -> ok | O4: 07:53:00 | P4: =C4/B4 -> 0.6126007875
A6: Hebertsfelden | B6: 2923 | C6: 2199 | D6: Utermann Marion (CSU) | E6: 655 | F6: =E6/J6 -> 0.2986776106 | G6: Kienböck-Stöger Karin (PWG) | H6: 1538 | I6: =H6/J6 -> 0.7013223894 | J6: =E6+H6 -> 2193 | K6: =C6-J6 -> 6 | M6: =F6+I6 -> 1 | N6: =IF(M6<>100%,"FALSCH","ok") -> ok | O6: 19:45:00 | P6: =C6/B6 -> 0.7523092713
A8: Wittibreut | B8: 1635 | C8: 1379 | D8: Moser Christine (CSU) | E8: 739 | F8: =E8/J8 -> 0.5374545455 | G8: Maier Alfons (FW) | H8: 636 | I8: =H8/J8 -> 0.4625454545 | J8: =E8+H8 -> 1375 | K8: =C8-J8 -> 4 | M8: =F8+I8 -> 1 | N8: =IF(M8<>100%,"FALSCH","ok") -> ok | O8: 21:21:00 | P8: =C8/B8 -> 0.8434250765

Sheet Internet
A1: Ergebnisse der Bürgermeisterstichwahlen am 29. März 2020 im Landkreis Rottal-Inn
A3: Gemeinden | B3: Stimmbe-rechtigte insges. A1 + A2 | C3: Wähler B insgesamt | D3: Bewerber A | E3: Stimmen | F3: Prozent | G3: Bewerber B | H3: Stimmen | I3: Prozent | J3: Gültige Stimmen gesamt | K3: ungültige Stimmen gesamt
A4: =Wahlamt!A4 -> Eggenfelden | B4: =Wahlamt!B4 -> 10666 | C4: =Wahlamt!C4 -> 6534 | D4: =Wahlamt!D4 -> Biber Martin (CSU) | E4: =Wahlamt!E4 -> 4409 | F4: =Wahlamt!F4 -> 0.6766421117 | G4: =Wahlamt!G4 -> Grubwinkler Wolfgang (UWG) | H4: =Wahlamt!H4 -> 2107 | I4: =Wahlamt!I4 -> 0.3233578883 | J4: =Wahlamt!J4 -> 6516 | K4: =Wahlamt!K4 -> 18
A6: Hebertsfelden | B6: 2923 | C6: 2199 | D6: Utermann Marion (CSU) | E6: 655 | F6: =E6/J6 -> 0.2986776106 | G6: Kienböck-Stöger Karin (PWG) | H6: 1538 | I6: =H6/J6 -> 0.7013223894 | J6: =E6+H6 -> 2193 | K6: =C6-J6 -> 6
A8: =Wahlamt!A8 -> Wittibreut | B8: =Wahlamt!B8 -> 1635 | C8: =Wahlamt!C8 -> 1379 | D8: =Wahlamt!D8 -> Moser Christine (CSU) | E8: =Wahlamt!E8 -> 739 | F8: =Wahlamt!F8 -> 0.5374545455 | G8: =Wahlamt!G8 -> Maier Alfons (FW) | H8: =Wahlamt!H8 -> 636 | I8: =Wahlamt!I8 -> 0.4625454545 | J8: =Wahlamt!J8 -> 1375 | K8: =Wahlamt!K8 -> 4

Sheet Präsentation
A1: Ergebnisse der Bürgermeisterstichwahlen am 29. März 2020 im Landkreis Rottal-Inn
A3: Gemeinden | B3: Bewerber A | C3: % | D3: Bewerber B | E3: % | F3: Wahlbe-teiligung
A4: =Wahlamt!A4 -> Eggenfelden | B4: =Wahlamt!D4 -> Biber Martin (CSU) | C4: =Wahlamt!F4*100 -> 67.66421117 | D4: =Wahlamt!G4 -> Grubwinkler Wolfgang (UWG) | E4: =Wahlamt!I4*100 -> 32.33578883 | F4: =Wahlamt!P4 -> 0.6126007875
A6: =Wahlamt!A6 -> Hebertsfelden | B6: =Wahlamt!D6 -> Utermann Marion (CSU) | C6: =Wahlamt!F6*100 -> 29.86776106 | D6: =Wahlamt!G6 -> Kienböck-Stöger Karin (PWG) | E6: =Wahlamt!I6*100 -> 70.13223894 | F6: =Wahlamt!P6 -> 0.7523092713
A8: =Wahlamt!A8 -> Wittibreut | B8: =Wahlamt!D8 -> Moser Christine (CSU) | C8: =Wahlamt!F8*100 -> 53.74545455 | D8: =Wahlamt!G8 -> Maier Alfons (FW) | E8: =Wahlamt!I8*100 -> 46.25454545 | F8: =Wahlamt!P8 -> 0.8434250765
